bitfinex/quotes_ETHUSD_20250720
["timestamp","ask_amount","ask_price","bid_price","bid_amount"]
[1752973812344,3.2309064,3613.1,3612.0,7.52154776]
[1752973812345,0.8189,3613.0,3611.6,2.76880641]
[1752973812548,0.1376,3613.0,3612.4,0.1384]
[1752973812747,0.4632,3613.1,3611.9,2.76855022]
[1752973812934,0.4632,3613.1,3612.9,0.1376]
[1752973813135,3.23097001,3613.1,3612.9,0.1376]
[1752973813351,2.767783,3613.0,3612.9,0.1376]
[1752973813851,0.4632,3613.3,3612.9,0.1376]
[1752973814059,0.4632,3613.3,3612.8,2.76793099]
[1752973814213,0.04,3613.9,3613.1,2.76766124]
[1752973814214,1.2821,3613.8,3613.1,2.76766124]
[1752973814415,0.8189,3613.8,3613.1,2.76766124]
[1752973814748,4.778,3613.9,3613.1,2.76766124]
[1752973814749,2.76725419,3613.7,3613.1,2.76766124]
[1752973814962,2.76725419,3613.7,3613.0,2.76776791]
[1752973815119,2.76725419,3613.7,3612.4,4.0726]
[1752973815120,2.76724842,3613.7,3612.4,4.0726]
[1752973815448,2.76737017,3613.6,3612.9,2.7678562]
[1752973815649,2.76739195,3613.6,3612.9,2.76782739]
[1752973815818,2.76792744,3612.9,3612.1,2.7684004]
[1752973816017,0.8189,3613.3,3612.5,2.76815606]
[1752973816018,2.76775928,3613.1,3612.5,2.76815606]
[1752973816222,2.76775928,3613.1,3612.2,2.79607994]
[1752973816223,2.76764699,3613.2,3612.6,2.76806326]
[1752973816420,4.734,3613.6,3612.2,0.02768395]
[1752973816421,1.34302,3613.8,3612.9,2.7677882]
[1752973816658,1.34302,3613.8,3612.2,5.76834094]
[1752973816863,1.074702,3613.7,3612.2,3.85400662]
[1752973817025,0.8189,3612.8,3611.5,0.71802294]
[1752973817220,1.2821,3612.8,3612.0,2.76848956]
[1752973817446,1.2821,3612.8,3611.5,3.7947]
[1752973817647,2.76814371,3612.6,3611.5,0.7947]
[1752973817846,0.4632,3612.7,3611.5,0.7947]
[1752973818046,0.4632,3612.6,3611.3,0.001]
[1752973818276,0.86819612,3612.6,3611.3,0.92119179]
[1752973818429,0.4632,3612.6,3611.3,0.94888264]
[1752973818624,3.23133647,3612.6,3611.8,2.7686333]
[1752973818857,2.76816825,3612.5,3611.8,2.7686333]
[1752973819165,3.23096803,3613.1,3611.8,3.6647049]
[1752973819343,3.23096803,3613.1,3612.5,2.76815936]
[1752973819344,5.1922,3613.1,3612.5,2.76815936]
[1752973819527,0.4632,3613.1,3612.0,0.02768549]
[1752973819729,7.49353887,3613.4,3612.7,2.76799331]
[1752973819968,2.76755419,3613.3,3612.7,2.76799331]
[1752973820245,0.4399,3613.3,3612.1,0.44576034]
[1752973820430,2.76771227,3613.1,3612.5,2.7681198]
[1752973820966,2.76771227,3613.1,3612.4,2.76821267]
[1752973821268,0.4399,3613.3,3612.2,0.02768395]
[1752973821469,4.718,3613.4,3612.9,2.7678062]
[1752973821759,7.48548147,3613.4,3612.7,2.76796065]
[1752973821962,4.718,3613.4,3612.8,2.7678688]
[1752973822166,2.76740002,3613.5,3612.6,0.02768089]
[1752973822348,2.76740002,3613.5,3612.8,2.76789078]
[1752973822551,2.76740002,3613.5,3612.9,2.76785341]
[1752973822757,0.002,3613.4,3612.9,2.76785341]
[1752973822942,0.002,3613.4,3613.0,2.76778252]
[1752973823138,0.002,3613.4,3612.7,0.02768012]
[1752973823424,0.002,3613.4,3612.6,0.66646988]
[1752973823631,0.002,3613.4,3613.3,2.7675532]
[1752973823862,0.002,3613.4,3613.3,2.93282873]
[1752973824062,0.002,3613.4,3613.3,3.21072873]
[1752973824266,0.002,3613.4,3613.3,3.1830532]
[1752973825492,0.002,3613.4,3613.3,2.7675532]
[1752973825835,0.002,3613.4,3613.3,3.32107314]
[1752973826238,0.002,3613.4,3613.3,8.02407314]
[1752973828992,0.002,3613.4,3613.2,4.69]
[1752973829468,0.002,3613.4,3613.1,7.45664832]
[1752973830074,0.002,3613.4,3613.1,4.689]
[1752973830443,0.4399,3613.3,3612.1,0.001]
[1752973830772,0.4399,3613.3,3612.2,4.688]
[1752973831075,0.002,3614.2,3613.4,3.57997661]
[1752973831279,0.7866,3615.6,3614.8,2.76640478]
[1752973831484,0.4799,3615.9,3614.8,14.10242266]
[1752973831774,3.24546524,3615.9,3614.8,7.46540478]
[1752973831936,0.4399,3615.5,3614.8,7.46540478]
[1752973832567,0.4399,3615.5,3614.8,4.699]
[1752973832772,2.76595888,3615.4,3614.8,4.699]
[1752973833048,0.4399,3615.5,3614.8,7.46540478]
[1752973833239,0.4399,3615.5,3614.8,8.4885973]
[1752973833546,2.7660374,3615.3,3614.4,2.76671093]
[1752973833879,1.227,3615.5,3614.5,0.02766634]
[1752973834606,0.4399,3614.8,3613.8,0.8156]
[1752973834742,2.76685672,3614.3,3613.8,4.692]
[1752973834949,0.7871,3614.7,3613.8,4.692]
[1752973835174,2.76683594,3614.3,3613.8,4.692]
[1752973835571,2.76657004,3614.6,3614.2,0.1376]
[1752973835771,0.4399,3614.5,3614.2,0.1376]
[1752973835972,0.042,3614.9,3614.4,0.8156]
[1752973836175,0.042,3614.9,3614.5,7.61989983]
[1752973836375,0.042,3614.9,3614.8,0.1376]
[1752973836683,0.042,3614.9,3614.8,2.93166882]
[1752973836862,0.042,3614.9,3614.8,3.97028329]
[1752973837068,0.042,3614.9,3614.8,3.94261925]
[1752973837985,0.04,3615.9,3614.9,3.486366]
[1752973838203,0.04,3615.9,3615.7,2.76569792]
[1752973838549,0.04,3615.9,3615.8,2.76563969]
[1752973839176,0.04,3615.9,3615.8,8.04219882]
[1752973839481,0.04,3615.9,3615.8,8.01454243]
[1752973839864,0.04,3615.9,3615.8,8.83014243]
[1752973840789,2.76571618,3615.7,3615.0,2.7662033]
[1752973840958,0.4799,3615.9,3615.3,2.76601162]
[1752973841151,0.04,3615.9,3615.4,0.02765945]
[1752973841351,0.04,3615.9,3615.5,4.688]
[1752973841579,0.04,3615.9,3615.8,2.76563969]
[1752973841888,0.04,3615.9,3615.8,2.79329608]
[1752973842099,0.04,3615.9,3615.8,8.25583969]
[1752973845100,0.042,3615.9,3615.8,8.25583969]
[1752973846689,0.042,3615.9,3615.8,19.44660569]
[1752973846889,0.042,3615.9,3615.8,30.75054596]
[1752973847188,0.042,3615.9,3615.8,36.13122796]
[1752973847394,0.042,3615.9,3615.8,19.48584196]
[1752973847794,0.042,3615.9,3615.5,2.76584763]
[1752973847795,0.4819,3615.9,3615.5,2.76584763]
[1752973848099,0.4399,3615.8,3615.6,4.663]
[1752973848281,0.4399,3615.7,3615.2,2.76606593]
[1752973848510,0.4399,3615.7,3615.6,0.1376]
[1752973848703,0.042,3615.9,3615.6,0.1376]
[1752973848858,0.042,3615.9,3615.7,4.665]
[1752973849052,0.4819,3615.9,3615.7,4.665]
[1752973849363,0.042,3615.9,3615.8,0.1376]
[1752973849555,0.042,3615.9,3615.8,2.90323969]
[1752973849757,0.042,3615.9,3615.8,0.1376]
[1752973850059,3.2474632,3615.9,3615.8,0.1376]
[1752973850401,1.3807,3615.9,3615.3,0.1376]
[1752973850693,0.042,3615.9,3615.8,0.1376]
[1752973850893,0.4815,3615.9,3615.8,0.1376]
[1752973851855,3.2470632,3615.9,3615.8,0.1376]
[1752973852080,2.76572708,3615.7,3615.5,4.665]
[1752973852280,0.4395,3615.6,3614.9,2.76628154]
[1752973852470,3.20534014,3615.6,3615.4,0.1376]
[1752973852678,0.4395,3615.5,3615.4,0.1376]
[1752973853169,0.042,3615.9,3615.4,0.1376]
[1752973853489,3.20515795,3615.8,3615.4,4.7966]
[1752973853697,2.76572681,3615.7,3615.4,4.7966]
[1752973853897,0.042,3615.9,3615.4,4.659]
[1752973854096,0.4815,3615.9,3615.8,0.1376]
[1752973854595,0.042,3615.9,3615.8,0.1376]
[1752973855501,0.4815,3615.9,3615.8,0.1376]
[1752973855707,3.2470632,3615.9,3615.8,0.1376]
[1752973856002,3.2470632,3615.9,3614.3,4.43981788]
[1752973856003,2.76563969,3615.8,3615.3,0.1376]
[1752973856208,2.03525391,3615.9,3615.4,0.83045945]
[1752973856209,0.042,3615.9,3615.4,0.83045945]
[1752973856510,0.042,3615.9,3615.8,2.76563969]
[1752973859060,0.042,3615.9,3615.8,4.647]
[1752973859260,0.042,3615.9,3615.8,7.41263969]
[1752973859577,0.4815,3615.9,3615.7,4.645]
[1752973859794,0.042,3615.9,3615.7,4.645]
[1752973860109,0.4395,3615.8,3614.8,3.63701788]
[1752973860279,2.76576249,3615.7,3615.0,2.76617609]
[1752973860475,1.2618,3615.8,3614.7,0.8314]
[1752973860476,0.4395,3615.6,3614.7,0.8314]
[1752973860791,2.76597188,3615.4,3614.8,4.658]
[1752973860991,0.4395,3615.3,3614.4,2.76669091]
[1752973861193,2.76641359,3614.8,3614.5,4.656]
[1752973861506,0.4395,3614.7,3613.3,4.46841788]
[1752973861660,0.4395,3614.7,3614.0,3.63701788]
[1752973861866,3.20568811,3615.1,3614.1,4.656]
[1752973862103,3.59105283,3614.3,3613.5,2.76740002]
[1752973862406,0.4395,3614.2,3613.6,4.657]
[1752973862603,2.76702318,3614.0,3613.4,4.08785967]
[1752973862903,2.76701715,3614.0,3613.5,4.656]
[1752973863089,0.8242,3614.3,3613.5,4.656]
[1752973863295,0.4395,3614.8,3614.6,2.76650222]
[1752973863601,0.8242,3615.5,3615.0,2.76622113]
[1752973863801,4.02959651,3615.5,3614.9,4.657]
[1752973864020,1.2637,3615.5,3614.9,7.42329113]
[1752973864600,1.2637,3615.5,3614.9,4.657]
[1752973865178,1.2637,3615.5,3614.9,7.42327035]
[1752973865420,1.2637,3615.5,3615.1,2.76616278]
[1752973865591,1.2637,3615.5,3614.9,4.657]
[1752973865804,0.4395,3615.4,3614.9,7.42327558]
[1752973866106,0.4395,3615.3,3614.9,7.42327558]
[1752973866288,0.4395,3615.3,3614.9,4.657]
[1752973866497,0.4395,3615.2,3614.9,4.658]
[1752973867212,0.4395,3615.1,3614.9,4.658]
[1752973867383,0.4395,3615.1,3614.9,0.001]
[1752973868417,0.8242,3615.5,3614.9,0.001]
[1752973868588,0.4395,3615.0,3614.9,0.001]
[1752973869488,0.4395,3615.0,3614.9,0.1386]
[1752973870002,3.20575172,3615.0,3614.9,0.1386]
[1752973870392,0.4395,3615.0,3614.9,0.1386]
[1752973871238,3.20575172,3615.0,3614.9,0.1386]
[1752973871533,3.20575172,3615.0,3614.9,0.001]
[1752973874059,2.76611693,3615.2,3614.9,0.001]
[1752973874225,0.4395,3615.0,3614.9,0.001]
[1752973874749,3.20575172,3615.0,3614.9,0.001]
[1752973875736,3.81669805,3615.0,3614.9,0.001]
[1752973876090,4.57269805,3615.0,3614.9,0.001]
[1752973877595,7.57269805,3615.0,3614.9,1e-08]
[1752973877876,3.55480002,3613.5,3613.4,0.1386]
[1752973878243,3.99430002,3613.5,3613.4,0.001]
[1752973879548,9.27946119,3613.5,3613.4,0.001]
[1752973879758,0.4395,3614.2,3613.4,0.001]
[1752973879959,0.4395,3614.2,3613.4,0.16627476]
[1752973880190,2.76699107,3614.1,3613.9,0.1376]
[1752973880394,0.4282,3614.0,3613.9,0.1376]
[1752973880596,1.2156,3614.0,3613.9,0.1376]
[1752973880806,1.2156,3614.0,3613.4,0.001]
[1752973881116,2.76714687,3613.9,3613.6,0.1376]
[1752973881413,3.19534687,3613.9,3613.6,0.1376]
[1752973881581,0.4282,3613.8,3613.6,0.1376]
[1752973881766,0.4282,3613.7,3613.6,0.1376]
[1752973882611,3.19550504,3613.7,3613.4,0.1386]
[1752973882812,2.76740002,3613.5,3613.4,0.001]
[1752973883187,3.19560002,3613.5,3613.4,0.001]
[1752973883786,3.98890002,3613.5,3613.4,0.001]
[1752973885226,3.19560002,3613.5,3613.4,0.001]
[1752973885522,2.76738081,3613.6,3613.4,0.001]
[1752973885703,2.76740002,3613.5,3613.4,0.001]
[1752973885908,2.76734963,3613.6,3613.4,0.001]
[1752973886220,2.76740002,3613.5,3613.4,0.001]
[1752973886411,3.19560002,3613.5,3613.4,0.001]
[1752973887022,0.1376,3613.9,3613.4,0.001]
[1752973887209,2.76719596,3613.8,3613.4,0.001]
[1752973887414,2.76718158,3613.8,3613.4,0.001]
[1752973887737,0.7933,3614.0,3613.4,0.001]
[1752973888037,3.56032,3614.0,3613.7,0.1376]
[1752973888224,3.56033831,3614.0,3613.7,0.1376]
[1752973888433,2.76717029,3613.8,3613.7,0.1376]
[1752973888939,3.19532429,3613.9,3613.7,0.1376]
[1752973889096,3.19537029,3613.8,3613.7,0.1376]
[1752973889302,0.4282,3613.8,3613.7,0.1376]
[1752973890508,0.4282,3613.8,3613.5,0.1386]
[1752973890714,0.4282,3613.7,3613.5,0.1386]
[1752973891410,2.76732344,3613.6,3613.5,0.1386]
[1752973891720,3.19552344,3613.6,3613.5,0.001]
[1752973893622,0.4282,3613.6,3613.5,0.001]
[1752973893930,3.19552344,3613.6,3613.5,0.001]
[1752973894328,0.7933,3614.0,3613.5,0.001]
[1752973894329,7.33615308,3613.9,3613.5,0.001]
[1752973894630,2.7671773,3613.8,3613.5,0.1386]
[1752973894846,2.76732344,3613.6,3613.5,0.001]
[1752973895371,3.19552344,3613.6,3613.5,0.001]
[1752973896453,3.99302344,3613.6,3613.5,0.001]
[1752973897156,2.7676298,3613.2,3613.1,0.02193725]
[1752973897518,3.1958298,3613.2,3613.1,0.02193725]
[1752973899002,4.24866053,3613.2,3613.1,0.02193725]
[1752973899166,4.24866053,3613.2,3612.1,0.041]
[1752973899167,2.76839599,3612.2,3612.1,0.041]
[1752973899479,4.559,3612.4,3612.1,0.041]
[1752973899779,0.4282,3612.2,3612.1,0.041]
[1752973899964,4.559,3612.6,3612.1,0.041]
[1752973900286,4.558,3613.1,3612.4,0.7511]
[1752973900480,4.558,3613.1,3612.6,2.76808673]
[1752973900648,4.558,3613.1,3612.4,1.10713593]
[1752973900649,0.4282,3613.2,3612.5,0.02768166]
[1752973900849,5.3468,3613.6,3612.8,2.76788793]
[1752973901063,2.76740002,3613.5,3612.8,2.76788793]
[1752973901262,1.43852009,3613.8,3613.0,2.76773988]
[1752973901465,4.557,3613.6,3612.9,2.76784063]
[1752973901673,4.557,3613.6,3613.0,2.76776433]
[1752973902180,4.557,3613.6,3612.8,2.76788632]
[1752973902335,2.76749037,3613.4,3612.7,2.76797006]
[1752973902540,2.76749037,3613.4,3612.5,3.63659396]
[1752973902541,7.75161645,3613.5,3612.8,2.76791762]
[1752973903485,7.75161645,3613.5,3612.4,5.56104501]
[1752973903486,0.4282,3613.4,3612.4,0.7511]
[1752973903652,2.7675532,3613.3,3612.4,0.7511]
[1752973903852,1.2482,3613.2,3612.5,2.76812114]
[1752973904176,2.76771491,3613.1,3612.4,3.5193181]
[1752973904682,0.4282,3613.0,3612.1,0.041]
[1752973904856,0.1384,3612.6,3612.1,0.041]
[1752973905183,2.7682514,3612.4,3612.1,0.041]
[1752973905382,4.549,3612.5,3612.1,0.041]
[1752973905561,7.31720802,3612.5,3612.1,0.041]
[1752973905876,0.4282,3612.4,3612.1,0.041]
[1752973906185,2.76839599,3612.2,3612.1,0.041]
[1752973906559,3.19659599,3612.2,3612.1,0.041]
[1752973907696,7.74159599,3612.2,3612.1,0.041]
[1752973909193,7.73759599,3612.2,3612.1,0.041]
[1752973910316,7.73759599,3612.2,3612.1,1e-08]
[1752973910599,3.5533626,3611.2,3611.1,1e-08]
[1752973910802,8.0923626,3611.2,3611.1,1e-08]
[1752973911104,7.7685626,3611.2,3611.1,1e-08]
[1752973911564,8.5527626,3611.2,3611.1,1e-08]
[1752973911902,2.76954607,3610.7,3610.1,0.04]
[1752973912206,7.31554607,3610.7,3610.1,0.04]
[1752973912409,8.58524607,3610.7,3610.1,0.04]
[1752973912705,8.58524607,3610.7,3610.6,1e-08]
[1752973913758,3.58722964,3610.2,3610.1,1e-08]
[1752973913964,8.14522964,3610.2,3610.1,1e-08]
[1752973914176,4.03962964,3610.2,3610.1,1e-08]
[1752973914410,8.59862964,3610.2,3610.1,1e-08]
[1752973919027,11.59862964,3610.2,3610.1,1e-08]
[1752973919229,13.58547621,3610.2,3610.1,1e-08]
[1752973919522,8.47647621,3610.2,3610.1,1e-08]
[1752973919698,13.02247621,3610.2,3610.1,1e-08]
[1752973920415,5.47647621,3610.2,3610.1,1e-08]
[1752973920733,8.58462964,3610.2,3610.1,1e-08]
[1752973920916,2.7699009,3610.3,3610.1,1e-08]
[1752973921129,7.31492964,3610.2,3610.1,1e-08]
[1752973921496,7.76732964,3610.2,3610.1,1e-08]
[1752973921839,7.76732964,3610.2,3609.1,0.04]
[1752973921840,2.7706971,3609.2,3609.1,0.04]
[1752973922129,7.3146971,3609.2,3609.1,0.04]
[1752973922431,0.4524,3609.9,3609.1,0.04]
[1752973922646,0.1384,3609.7,3609.1,0.1784]
[1752973922939,0.1384,3609.7,3609.1,2.94915319]
[1752973923150,4.546,3609.6,3609.1,2.94915319]
[1752973923446,4.545,3609.6,3609.1,0.1784]
[1752973924134,4.545,3609.6,3609.1,2.94916688]
[1752973924598,0.1384,3609.7,3609.1,2.94915986]
[1752973924794,2.90873614,3609.7,3609.2,0.7838]
[1752973924996,0.1384,3609.7,3609.2,0.7838]
[1752973925634,2.90874053,3609.7,3609.2,0.7838]
[1752973925809,0.1384,3609.7,3609.2,0.7838]
[1752973926329,0.1384,3609.7,3609.2,6.27191337]
[1752973926507,2.90845318,3610.1,3609.5,2.90879948]
[1752973926702,4.535,3610.0,3609.5,2.90879948]
[1752973927364,7.44141211,3610.1,3609.5,0.1384]
[1752973927494,0.4524,3610.0,3609.5,0.1384]
[1752973927698,2.76983785,3610.4,3609.7,2.77025194]
[1752973928014,2.76971213,3610.5,3609.3,4.80994501]
[1752973928190,2.76985868,3610.3,3609.6,2.77034398]
[1752973928445,1.2728,3611.1,3610.1,0.7644]
[1752973928647,4.533,3611.0,3610.2,2.76986971]
[1752973928795,2.76940975,3610.9,3610.2,2.76986971]
[1752973928996,0.8204,3611.6,3610.2,0.63043142]
[1752973929234,1.2728,3611.6,3610.3,2.76979222]
[1752973929535,3.06527195,3611.9,3610.5,0.7644]
[1752973929536,0.04,3611.9,3610.5,0.7644]
[1752973929837,2.76900172,3611.5,3610.8,2.76942234]
[1752973930145,2.76922183,3611.2,3610.5,3.5340249]
[1752973930330,2.76922183,3611.2,3610.6,2.76961668]
[1752973930847,0.53924,3611.7,3610.5,0.7644]
[1752973930848,0.4524,3611.5,3610.5,0.7644]
[1752973931055,2.7693282,3611.0,3610.5,0.7644]
[1752973931398,2.76939523,3610.9,3610.5,0.7644]
[1752973931802,2.76969507,3610.6,3609.9,3.0]
[1752973932116,2.76976039,3610.5,3610.0,0.7644]
[1752973932313,4.53,3610.9,3610.0,0.7644]
[1752973932513,2.76977794,3610.4,3610.0,0.7644]
[1752973932912,4.9814,3611.0,3610.0,0.7644]
[1752973933115,2.76970968,3610.5,3610.0,0.7644]
[1752973933335,2.76964193,3610.6,3610.0,0.7644]
[1752973933500,0.4524,3610.9,3610.0,0.7644]
[1752973933704,2.76975844,3610.5,3610.0,0.7644]
[1752973934011,0.95054,3610.9,3610.0,0.7644]
[1752973934211,2.76969621,3610.6,3610.0,0.7644]
[1752973935025,2.76970476,3610.5,3610.0,0.7644]
[1752973935309,0.4524,3611.4,3610.1,3.04790637]
[1752973935505,0.4524,3611.4,3610.2,3.63492494]
[1752973935506,2.76947782,3610.8,3610.2,3.63492494]
[1752973935850,2.76938233,3611.0,3610.3,2.76984594]
[1752973936045,2.76918256,3611.2,3610.3,2.76984594]
[1752973936236,2.76938488,3611.0,3610.3,2.76984594]
[1752973936542,2.76944012,3610.9,3610.2,3.63487981]
[1752973937151,2.76931652,3611.0,3610.4,2.76976144]
[1752973937355,2.76931652,3611.0,3610.4,2.76977417]
[1752973937705,2.76931652,3611.0,3610.5,0.1384]
[1752973938126,2.90766773,3611.1,3610.5,2.90809916]
[1752973938345,2.76906794,3611.4,3610.8,0.8038]
[1752973938541,2.76906487,3611.4,3610.9,0.1384]
[1752973938720,2.76909276,3611.3,3610.9,0.1384]
[1752973939433,2.7690251,3611.4,3610.9,0.1384]
[1752973939632,2.90733347,3611.5,3610.9,0.1384]
[1752973939826,2.76918073,3611.2,3610.9,0.1384]
[1752973940233,2.76918073,3611.2,3608.1,3.36189394]
[1752973940234,0.8128,3610.8,3610.0,0.8038]
[1752973940436,2.76971848,3610.5,3610.0,0.8038]
[1752973940611,2.76970366,3610.5,3610.0,0.8038]
[1752973941307,3.3723628,3610.7,3610.0,0.8038]
[1752973941308,2.76979581,3610.4,3610.0,0.8038]
[1752973941510,2.76972865,3610.5,3610.0,0.8038]
[1752973941709,3.37241595,3610.7,3610.0,0.8038]
[1752973942048,2.76969948,3610.5,3610.0,0.8038]
[1752973942361,3.37237334,3610.7,3610.0,0.8038]
[1752973942536,2.7697662,3610.5,3610.0,0.8038]
[1752973942734,2.76964061,3610.6,3610.0,0.8038]
[1752973942932,2.76980424,3610.4,3610.0,0.8038]
[1752973943111,2.76986159,3610.3,3610.0,0.8038]
[1752973943314,0.4644,3610.2,3609.9,0.1384]
[1752973943539,2.77008238,3610.1,3609.9,0.1384]
[1752973943750,3.23433391,3610.2,3609.9,0.1384]
[1752973943937,2.77000637,3610.1,3609.9,0.1384]
[1752973944145,2.7700831,3610.0,3609.9,0.1384]
[1752973944553,2.77002296,3610.1,3609.9,0.1384]
[1752973945027,0.4644,3610.2,3609.9,0.1384]
[1752973945463,2.7700831,3610.0,3609.9,0.1384]
[1752973945829,3.23442405,3610.1,3609.9,0.1384]
[1752973946030,0.4644,3610.1,3609.9,0.1384]
[1752973946231,0.4644,3611.0,3609.9,0.50965738]
[1752973946559,2.76976168,3610.5,3609.9,2.90855416]
[1752973946962,0.1384,3610.7,3609.9,0.1384]
[1752973947132,2.76999838,3610.2,3609.9,0.1384]
[1752973947331,2.76979542,3610.4,3609.9,0.1384]
[1752973947652,0.4644,3610.5,3609.9,0.1384]
[1752973947653,2.76971034,3610.5,3609.9,2.90852773]
[1752973947824,2.76977995,3610.4,3609.9,0.1384]
[1752973948024,2.76985576,3610.3,3609.9,0.1384]
[1752973948264,2.76968517,3610.6,3610.0,2.77008077]
[1752973948429,2.76964696,3610.6,3610.0,2.77005391]
[1752973948831,2.76970108,3610.5,3609.9,2.90853838]
[1752973949643,0.6028,3610.7,3609.9,0.1384]
[1752973949843,0.6028,3610.7,3610.1,2.76995846]
[1752973949844,2.90795222,3610.7,3610.1,2.76995846]
[1752973950242,0.1384,3610.7,3610.1,2.76995846]
[1752973950645,2.90799281,3610.7,3610.1,2.76995846]
[1752973950864,0.8128,3611.2,3610.2,3.0]
[1752973950865,0.4644,3611.2,3610.2,3.0]
[1752973951068,2.76931631,3611.0,3610.6,0.1384]
[1752973951668,2.76954607,3610.7,3610.6,0.1384]
[1752973951858,2.76954607,3610.7,3610.2,0.1384]
[1752973952056,3.23407011,3610.6,3610.2,0.1384]
[1752973952563,2.76971493,3610.5,3610.2,0.1384]
[1752973952770,2.76981018,3610.4,3610.2,0.1384]
[1752973953076,2.76985292,3610.3,3610.2,0.1384]
[1752973953232,3.23425292,3610.3,3610.2,0.1384]
[1752973953432,2.76995784,3610.2,3610.0,0.8312]
[1752973953633,3.23432964,3610.2,3610.0,0.1384]
[1752973953833,3.23440637,3610.1,3610.0,0.1384]
[1752973954250,0.4644,3610.1,3610.0,0.1384]
[1752973954775,0.4644,3610.4,3610.0,0.1384]
[1752973955073,0.4644,3610.3,3610.0,0.1384]
[1752973955378,0.4644,3610.5,3610.1,0.001]
[1752973955570,2.76983215,3610.4,3610.1,0.001]
[1752973956282,2.76970026,3610.5,3610.1,0.001]
[1752973956631,0.1384,3610.6,3610.1,0.001]
[1752973957474,2.76969948,3610.5,3610.1,0.001]
[1752973957772,0.1384,3610.8,3610.2,0.1384]
[1752973958361,2.7691171,3611.3,3610.6,2.76956019]
[1752973958668,2.76911589,3611.3,3610.7,0.4681]
[1752973959177,7.24186189,3611.6,3610.7,3.23761476]
[1752973959379,4.473,3611.6,3610.3,5.63314501]
[1752973959595,5.20138619,3611.6,3610.3,5.63314501]
[1752973959796,0.4644,3611.5,3610.3,8.40296498]
[1752973960004,2.7692478,3611.1,3610.5,2.76968158]
[1752973960298,0.4644,3611.5,3610.3,8.40296498]
[1752973960299,0.4644,3611.5,3610.3,5.63314501]
[1752973960479,2.76936284,3611.0,3610.4,1.0576245]
[1752973960650,2.76936284,3611.0,3610.4,3.82739319]
[1752973960846,2.76932798,3611.0,3610.4,1.0576245]
[1752973961050,2.76939674,3610.9,3610.4,1.0576245]
[1752973961362,2.76929673,3611.1,3610.4,1.0576245]
[1752973961569,4.473,3611.6,3610.9,4.80994501]
[1752973961570,7.24185972,3611.6,3610.9,4.80994501]
[1752973961816,4.473,3611.6,3611.0,0.4681]
[1752973962094,2.76893257,3611.5,3610.9,4.80994501]
[1752973962292,2.76901968,3611.4,3610.9,4.80994501]
[1752973962590,2.76901968,3611.4,3611.0,1.25174851]
[1752973962921,2.76901968,3611.4,3611.0,4.468]
[1752973962922,2.7691626,3611.2,3611.0,4.468]
[1752973963086,0.002,3611.7,3610.3,0.8232]
[1752973963087,0.4644,3611.1,3610.3,0.8232]
[1752973963249,0.002,3611.7,3610.3,0.8232]
[1752973963250,0.4644,3611.5,3610.6,4.468]
[1752973963455,0.4644,3611.5,3610.7,2.76949558]
[1752973963766,2.76916713,3611.2,3610.6,8.24771837]
[1752973964252,2.76924573,3611.1,3610.6,5.4781145]
[1752973964849,2.76932489,3611.0,3610.6,5.4781145]
[1752973965048,0.4644,3611.2,3610.7,4.468]
[1752973965253,3.23361984,3611.2,3610.6,1.0101145]
[1752973965493,4.9324,3611.6,3610.6,4.468]
[1752973965695,2.76909865,3611.3,3610.6,4.468]
[1752973966197,0.4644,3611.6,3611.0,4.80994501]
[1752973966353,0.4644,3611.6,3611.0,9.27794501]
[1752973967279,0.002,3611.7,3611.0,9.27794501]
[1752973967280,0.002,3611.7,3611.1,0.7846]
[1752973967461,0.002,3611.7,3611.5,4.80994501]
[1752973967665,0.002,3611.7,3611.6,7.2368559]
[1752973967975,0.002,3611.7,3611.6,7.7049559]
[1752973968393,0.002,3611.7,3611.6,8.6279559]
[1752973968961,0.002,3611.7,3611.6,11.6279559]
[1752973969295,0.002,3611.7,3611.6,13.54864085]
[1752973972695,0.002,3611.7,3611.6,9.08064085]
[1752973972862,0.002,3611.7,3611.6,13.54764085]
[1752973973062,0.002,3611.7,3611.6,9.08064085]
[1752973973498,0.002,3611.7,3611.6,13.54764085]
[1752973976102,0.002,3612.5,3612.4,2.76824271]
[1752973976265,0.002,3612.5,3612.4,12.04518772]
[1752973976465,0.002,3612.5,3612.4,12.63458772]
[1752973977789,0.002,3612.5,3612.4,13.42968772]
[1752973978198,0.002,3612.5,3612.4,8.96268772]
[1752973978370,0.002,3612.5,3612.4,13.42868772]
[1752973978695,0.002,3612.5,3612.4,15.04838937]
[1752973980409,3.20001453,3612.5,3612.0,0.7951]
[1752973980697,0.4318,3612.5,3612.1,4.465]
[1752973980906,2.76832645,3612.3,3611.5,4.80994501]
[1752973981068,2.76832645,3612.3,3609.3,0.001]
[1752973981069,2.76880348,3611.7,3611.2,0.7951]
[1752973981266,0.70683264,3612.2,3611.3,4.465]
[1752973981267,2.76895305,3611.5,3611.3,4.465]
[1752973981605,2.76914543,3611.3,3610.8,0.7951]
[1752973981813,0.4298,3611.5,3610.9,4.465]
[1752973982111,2.76908655,3611.3,3610.9,4.465]
[1752973982276,2.76903595,3611.4,3610.9,4.465]
[1752973983078,3.19875091,3611.5,3610.9,7.23438234]
[1752973983281,0.002,3612.5,3611.1,4.80994501]
[1752973983282,0.4298,3612.0,3611.1,4.80994501]
[1752973983513,0.4298,3612.0,3611.2,4.465]
[1752973983514,2.76858115,3612.0,3611.2,4.465]
[1752973983714,2.76873584,3611.8,3611.2,7.23415873]
[1752973984307,2.76865315,3611.9,3611.2,4.465]
[1752973984508,2.76865315,3611.9,3611.3,2.76908535]
[1752973984704,1.2552,3612.3,3611.4,2.76893696]
[1752973984884,1.2552,3612.3,3611.5,2.76892934]
[1752973984885,4.02351984,3612.3,3611.5,2.76892934]
[1752973985083,2.76847582,3612.1,3611.6,4.465]
[1752973985430,2.76863098,3611.9,3611.6,4.465]